[Event "December 19 Early 2023"]
[Site "https://www.chess.com"]
[Date "2023.12.19"]
[Round "7"]
[White "Popov, Konstantin"]
[Black "Nihal Sarin"]
[Result "0-1"]
[Board "5"]
[TimeControl "180+1"]
[WhiteFideId "34137910"]
[BlackFideId "25092340"]
[WhiteElo "2340"]
[BlackElo "2689"]
[WhiteTeam "FID"]
[BlackTeam "IND"]
[WhiteClock "0:00:24"]
[BlackClock "0:02:28"]

1. e4 {[%clk 0:03:00]}  a6 {[%clk 0:02:55]} 2. c4 {[%clk 0:02:52]}  g6 {[%clk 0:02:56]} 3. Nc3 {[%clk 0:02:52]}  Bg7 {[%clk 0:02:56]} 4. d4 {[%clk 0:02:52]}  d6 {[%clk 0:02:56]} 5. h4 {[%clk 0:02:50]}  Nc6 {[%clk 0:02:56]} 6. d5 {[%clk 0:02:49]}  Nd4 {[%clk 0:02:56]} 7. h5 {[%clk 0:02:47]}  c5 {[%clk 0:02:57]} 8. h6 {[%clk 0:02:47]}  Bf6 {[%clk 0:02:57]} 9. Nf3 {[%clk 0:02:47]}  Bg4 {[%clk 0:02:56]} 10. Be2 {[%clk 0:02:47]}  Bxf3 {[%clk 0:02:56]} 11. gxf3 {[%clk 0:02:47]}  e5 {[%clk 0:02:57]} 12. f4 {[%clk 0:02:43]}  exf4 {[%clk 0:02:57]} 13. Bxf4 {[%clk 0:02:43]}  Bg5 {[%clk 0:02:58]} 14. Be3 {[%clk 0:02:36]}  Bxe3 {[%clk 0:02:44]} 15. fxe3 {[%clk 0:02:36]}  Nxe2 {[%clk 0:02:45]} 16. Qxe2 {[%clk 0:02:35]}  Qe7 {[%clk 0:02:45]} 17. O-O-O {[%clk 0:02:28]}  Nf6 {[%clk 0:02:45]} 18. Qf3 {[%clk 0:02:24]}  Nd7 {[%clk 0:02:45]} 19. a4 {[%clk 0:02:00]}  Ne5 {[%clk 0:02:45]} 20. Qe2 {[%clk 0:01:59]}  O-O {[%clk 0:02:45]} 21. Rdf1 {[%clk 0:01:56]}  Rfe8 {[%clk 0:02:43]} 22. Kc2 {[%clk 0:01:54]}  Qg5 {[%clk 0:02:42]} 23. Rf4 {[%clk 0:01:51]}  Re7 {[%clk 0:02:42]} 24. a5 {[%clk 0:01:49]}  Rae8 {[%clk 0:02:42]} 25. b3 {[%clk 0:01:45]}  Rb8 {[%clk 0:02:42]} 26. Qf2 {[%clk 0:01:33]}  b5 {[%clk 0:02:36]} 27. axb6 {[%clk 0:01:32]}  Rxb6 {[%clk 0:02:36]} 28. Qh4 {[%clk 0:01:04]}  Qxh4 {[%clk 0:02:30]} 29. Rfxh4 {[%clk 0:01:05]}  Reb7 {[%clk 0:02:27]} 30. Rb1 {[%clk 0:01:04]}  f6 {[%clk 0:02:27]} 31. Rh2 {[%clk 0:00:52]}  Kf7 {[%clk 0:02:27]} 32. Rf2 {[%clk 0:00:51]}  g5 {[%clk 0:02:27]} 33. Rf5 {[%clk 0:00:47]}  Kg6 {[%clk 0:02:27]} 34. Rbf1 {[%clk 0:00:24]}  Ng4 {[%clk 0:02:28]} 0-1

[Event "December 19 Early 2023"]
[Site "https://www.chess.com"]
[Date "2023.12.19"]
[Round "7"]
[White "Niemann, Hans Moke"]
[Black "Shevchenko, Kirill"]
[Result "0-1"]
[Board "6"]
[TimeControl "180+1"]
[WhiteFideId "2093596"]
[BlackFideId "14129574"]
[WhiteElo "2614"]
[BlackElo "2603"]
[WhiteTeam "USA"]
[BlackTeam "ROU"]
[WhiteClock "0:00:56"]
[BlackClock "0:00:41"]

1. e4 {[%clk 0:03:00]}  c5 {[%clk 0:02:58]} 2. Nf3 {[%clk 0:03:00]}  Nc6 {[%clk 0:02:59]} 3. Bb5 {[%clk 0:02:59]}  Nf6 {[%clk 0:02:59]} 4. Nc3 {[%clk 0:02:57]}  Qc7 {[%clk 0:02:59]} 5. Bxc6 {[%clk 0:02:48]}  dxc6 {[%clk 0:02:58]} 6. e5 {[%clk 0:02:47]}  Nd5 {[%clk 0:02:48]} 7. h3 {[%clk 0:02:40]}  h6 {[%clk 0:02:31]} 8. O-O {[%clk 0:02:35]}  g5 {[%clk 0:02:31]} 9. Re1 {[%clk 0:02:12]}  g4 {[%clk 0:02:24]} 10. hxg4 {[%clk 0:02:11]}  Bxg4 {[%clk 0:02:25]} 11. d4 {[%clk 0:01:46]}  O-O-O {[%clk 0:02:22]} 12. Nxd5 {[%clk 0:01:40]}  Rxd5 {[%clk 0:02:21]} 13. c3 {[%clk 0:01:40]}  cxd4 {[%clk 0:02:06]} 14. cxd4 {[%clk 0:01:41]}  Qd7 {[%clk 0:01:55]} 15. Qb3 {[%clk 0:01:36]}  Rg8 {[%clk 0:01:50]} 16. Bf4 {[%clk 0:01:35]}  Qf5 {[%clk 0:01:40]} 17. Qe3 {[%clk 0:01:34]}  Bxf3 {[%clk 0:01:33]} 18. Qxf3 {[%clk 0:01:33]}  Rxd4 {[%clk 0:01:33]} 19. Bg3 {[%clk 0:01:26]}  Qxf3 {[%clk 0:01:30]} 20. gxf3 {[%clk 0:01:26]}  h5 {[%clk 0:01:27]} 21. Kf1 {[%clk 0:01:27]}  h4 {[%clk 0:00:54]} 22. Bh2 {[%clk 0:01:26]}  Bh6 {[%clk 0:00:55]} 23. e6 {[%clk 0:01:23]}  fxe6 {[%clk 0:00:41]} 24. Rxe6 {[%clk 0:01:22]}  Bf4 {[%clk 0:00:42]} 25. Bxf4 {[%clk 0:01:20]}  Rxf4 {[%clk 0:00:43]} 26. Rxe7 {[%clk 0:01:20]}  Rxf3 {[%clk 0:00:40]} 27. Rd1 {[%clk 0:01:19]}  Rgf8 {[%clk 0:00:41]} 28. Rdd7 {[%clk 0:00:56]}  Rxf2+ {[%clk 0:00:41]} 0-1

[Event "December 19 Early 2023"]
[Site "https://www.chess.com"]
[Date "2023.12.19"]
[Round "7"]
[White "Sjugirov, Sanan"]
[Black "So, Wesley"]
[Result "0-1"]
[Board "7"]
[TimeControl "180+1"]
[WhiteFideId "4189302"]
[BlackFideId "5202213"]
[WhiteElo "2569"]
[BlackElo "2767"]
[WhiteTeam "HUN"]
[BlackTeam "USA"]
[WhiteClock "0:00:00"]
[BlackClock "0:00:32"]

1. e4 {[%clk 0:03:00]}  d6 {[%clk 0:02:56]} 2. d4 {[%clk 0:03:00]}  Nf6 {[%clk 0:02:57]} 3. Nc3 {[%clk 0:03:01]}  g6 {[%clk 0:02:57]} 4. Be3 {[%clk 0:03:01]}  a6 {[%clk 0:02:55]} 5. Qd2 {[%clk 0:02:59]}  b5 {[%clk 0:02:54]} 6. a3 {[%clk 0:02:56]}  Nbd7 {[%clk 0:02:50]} 7. f3 {[%clk 0:02:41]}  Bb7 {[%clk 0:02:41]} 8. h4 {[%clk 0:02:38]}  c5 {[%clk 0:02:38]} 9. Nge2 {[%clk 0:02:23]}  cxd4 {[%clk 0:02:27]} 10. Nxd4 {[%clk 0:02:23]}  h5 {[%clk 0:02:28]} 11. Be2 {[%clk 0:02:11]}  Bg7 {[%clk 0:02:27]} 12. a4 {[%clk 0:01:30]}  b4 {[%clk 0:02:09]} 13. Na2 {[%clk 0:01:30]}  d5 {[%clk 0:02:08]} 14. Nxb4 {[%clk 0:01:26]}  dxe4 {[%clk 0:02:07]} 15. O-O {[%clk 0:01:14]}  O-O {[%clk 0:01:57]} 16. Nbc6 {[%clk 0:01:11]}  Qc7 {[%clk 0:01:49]} 17. Qa5 {[%clk 0:00:54]}  Qd6 {[%clk 0:01:33]} 18. Qb4 {[%clk 0:00:25]}  Qxb4 {[%clk 0:01:15]} 19. Nxb4 {[%clk 0:00:25]}  Rfc8 {[%clk 0:01:15]} 20. a5 {[%clk 0:00:21]}  e5 {[%clk 0:01:11]} 21. Nb3 {[%clk 0:00:21]}  Bf8 {[%clk 0:01:07]} 22. c3 {[%clk 0:00:09]}  Bxb4 {[%clk 0:01:06]} 23. cxb4 {[%clk 0:00:10]}  Nd5 {[%clk 0:01:06]} 24. Bc5 {[%clk 0:00:09]}  Nf4 {[%clk 0:00:55]} 25. Bc4 {[%clk 0:00:08]}  exf3 {[%clk 0:00:54]} 26. gxf3 {[%clk 0:00:09]}  Bd5 {[%clk 0:00:50]} 27. Bxd5 {[%clk 0:00:09]}  Nxd5 {[%clk 0:00:51]} 28. Rad1 {[%clk 0:00:10]}  Nxc5 {[%clk 0:00:50]} 29. bxc5 {[%clk 0:00:08]}  Ne3 {[%clk 0:00:50]} 30. Rd6 {[%clk 0:00:07]}  Nxf1 {[%clk 0:00:50]} 31. Kxf1 {[%clk 0:00:08]}  Kf8 {[%clk 0:00:44]} 32. Ke2 {[%clk 0:00:08]}  Ke7 {[%clk 0:00:44]} 33. Kd3 {[%clk 0:00:08]}  Rxc5 {[%clk 0:00:42]} 34. Rb6 {[%clk 0:00:08]}  Rc7 {[%clk 0:00:39]} 35. Nd2 {[%clk 0:00:07]}  Rd8+ {[%clk 0:00:39]} 36. Ke3 {[%clk 0:00:07]}  Rd6 {[%clk 0:00:39]} 37. Rb8 {[%clk 0:00:07]}  Rcd7 {[%clk 0:00:35]} 38. Ne4 {[%clk 0:00:07]}  Rd3+ {[%clk 0:00:35]} 39. Kf2 {[%clk 0:00:07]}  Rc7 {[%clk 0:00:34]} 40. b4 {[%clk 0:00:06]}  Rc2+ {[%clk 0:00:33]} 41. Kg3 {[%clk 0:00:07]}  Rd1 {[%clk 0:00:32]} 42. Rb7+ {[%clk 0:00:07]}  Kf8 {[%clk 0:00:32]} 43. Ng5 {[%clk 0:00:05]}  f5 {[%clk 0:00:32]} 44. Nh7+ {[%clk 0:00:02]}  Ke8 {[%clk 0:00:31]} 45. Nf6+ {[%clk 0:00:00]}  Kd8 {[%clk 0:00:32]} 0-1

[Event "December 19 Early 2023"]
[Site "https://www.chess.com"]
[Date "2023.12.19"]
[Round "7"]
[White "Steinberg, Nitzan"]
[Black "Praggnanandhaa R"]
[Result "1/2-1/2"]
[Board "9"]
[TimeControl "180+1"]
[WhiteFideId "2801795"]
[BlackFideId "25059530"]
[WhiteElo "2486"]
[BlackElo "2665"]
[WhiteTeam "ISR"]
[BlackTeam "IND"]
[WhiteClock "0:00:08"]
[BlackClock "0:00:06"]

1. e4 {[%clk 0:03:00]}  Nc6 {[%clk 0:02:56]} 2. Nf3 {[%clk 0:03:00]}  d6 {[%clk 0:02:54]} 3. d4 {[%clk 0:03:00]}  Nf6 {[%clk 0:02:54]} 4. Nc3 {[%clk 0:03:01]}  g6 {[%clk 0:02:55]} 5. Bb5 {[%clk 0:03:01]}  Bd7 {[%clk 0:02:52]} 6. O-O {[%clk 0:02:59]}  Bg7 {[%clk 0:02:51]} 7. Re1 {[%clk 0:02:58]}  O-O {[%clk 0:02:47]} 8. h3 {[%clk 0:02:57]}  a6 {[%clk 0:02:40]} 9. Bf1 {[%clk 0:02:53]}  e5 {[%clk 0:02:39]} 10. dxe5 {[%clk 0:02:50]}  dxe5 {[%clk 0:02:39]} 11. Bg5 {[%clk 0:02:39]}  h6 {[%clk 0:02:36]} 12. Bh4 {[%clk 0:02:33]}  Be6 {[%clk 0:02:36]} 13. Nd5 {[%clk 0:01:59]}  g5 {[%clk 0:02:16]} 14. Nxf6+ {[%clk 0:01:50]}  Qxf6 {[%clk 0:02:15]} 15. Bg3 {[%clk 0:01:50]}  Rad8 {[%clk 0:02:14]} 16. Qc1 {[%clk 0:01:39]}  Rd7 {[%clk 0:02:01]} 17. c3 {[%clk 0:01:38]}  Rfd8 {[%clk 0:02:01]} 18. Qe3 {[%clk 0:01:34]}  Qe7 {[%clk 0:01:53]} 19. Be2 {[%clk 0:01:25]}  Qf6 {[%clk 0:01:32]} 20. b3 {[%clk 0:01:20]}  Qg6 {[%clk 0:01:07]} 21. Red1 {[%clk 0:01:17]}  Bf6 {[%clk 0:01:07]} 22. Rxd7 {[%clk 0:01:13]}  Rxd7 {[%clk 0:01:07]} 23. Rd1 {[%clk 0:01:14]}  Rxd1+ {[%clk 0:01:07]} 24. Bxd1 {[%clk 0:01:15]}  h5 {[%clk 0:01:07]} 25. Be2 {[%clk 0:01:06]}  h4 {[%clk 0:01:01]} 26. Bh2 {[%clk 0:01:04]}  g4 {[%clk 0:01:01]} 27. hxg4 {[%clk 0:01:02]}  Bxg4 {[%clk 0:01:01]} 28. Ne1 {[%clk 0:00:53]}  Be6 {[%clk 0:00:58]} 29. Kf1 {[%clk 0:00:42]}  Bg5 {[%clk 0:00:44]} 30. Qd3 {[%clk 0:00:36]}  Qh6 {[%clk 0:00:39]} 31. Nf3 {[%clk 0:00:21]}  Bf4 {[%clk 0:00:36]} 32. Bxf4 {[%clk 0:00:22]}  Qxf4 {[%clk 0:00:37]} 33. Qe3 {[%clk 0:00:19]}  Qxe3 {[%clk 0:00:29]} 34. fxe3 {[%clk 0:00:20]}  h3 {[%clk 0:00:29]} 35. g3 {[%clk 0:00:18]}  Bg4 {[%clk 0:00:18]} 36. Kg1 {[%clk 0:00:18]}  f6 {[%clk 0:00:14]} 37. Kh2 {[%clk 0:00:17]}  Kg7 {[%clk 0:00:14]} 38. Ng1 {[%clk 0:00:17]}  Be6 {[%clk 0:00:06]} 39. Nxh3 {[%clk 0:00:17]}  Bxh3 {[%clk 0:00:06]} 40. Kxh3 {[%clk 0:00:18]}  Na7 {[%clk 0:00:07]} 41. Kg4 {[%clk 0:00:17]}  Nc8 {[%clk 0:00:07]} 42. c4 {[%clk 0:00:06]}  Nd6 {[%clk 0:00:06]} 43. Kf3 {[%clk 0:00:06]}  c5 {[%clk 0:00:05]} 44. Bd3 {[%clk 0:00:06]}  Kg6 {[%clk 0:00:05]} 45. Kg4 {[%clk 0:00:05]}  a5 {[%clk 0:00:03]} 46. Kh4 {[%clk 0:00:04]}  Kh6 {[%clk 0:00:03]} 47. Kg4 {[%clk 0:00:05]}  Kg6 {[%clk 0:00:02]} 48. Kh4 {[%clk 0:00:05]}  b6 {[%clk 0:00:03]} 49. Kg4 {[%clk 0:00:06]}  Nc8 {[%clk 0:00:03]} 50. Kh4 {[%clk 0:00:06]}  Nd6 {[%clk 0:00:03]} 51. Kg4 {[%clk 0:00:06]}  Nf7 {[%clk 0:00:04]} 52. Kh4 {[%clk 0:00:05]}  Ng5 {[%clk 0:00:04]} 53. Kg4 {[%clk 0:00:05]}  Ne6 {[%clk 0:00:04]} 54. Kh4 {[%clk 0:00:05]}  Nd8 {[%clk 0:00:04]} 55. Kg4 {[%clk 0:00:06]}  Nc6 {[%clk 0:00:04]} 56. Kh4 {[%clk 0:00:06]}  Nb4 {[%clk 0:00:04]} 57. Bb1 {[%clk 0:00:07]}  Na6 {[%clk 0:00:04]} 58. Bd3 {[%clk 0:00:06]}  Nc7 {[%clk 0:00:04]} 59. Kg4 {[%clk 0:00:06]}  Ne8 {[%clk 0:00:05]} 60. Kh4 {[%clk 0:00:06]}  Ng7 {[%clk 0:00:05]} 61. Kg4 {[%clk 0:00:06]}  Ne6 {[%clk 0:00:05]} 62. Kh4 {[%clk 0:00:06]}  Ng5 {[%clk 0:00:05]} 63. Kg4 {[%clk 0:00:07]}  Nf7 {[%clk 0:00:05]} 64. Kh4 {[%clk 0:00:07]}  Nd8 {[%clk 0:00:05]} 65. Kg4 {[%clk 0:00:08]}  Nb7 {[%clk 0:00:06]} 66. Kh4 {[%clk 0:00:08]}  Nd6 {[%clk 0:00:06]} 1/2-1/2

[Event "December 19 Early 2023"]
[Site "https://www.chess.com"]
[Date "2023.12.19"]
[Round "7"]
[White "Vokhidov, Shamsiddin"]
[Black "Zakhartsov, Vladimir"]
[Result "1-0"]
[Board "10"]
[TimeControl "180+1"]
[WhiteFideId "14204223"]
[BlackFideId "4145097"]
[WhiteElo "2588"]
[BlackElo "2448"]
[WhiteTeam "UZB"]
[BlackTeam "RUS"]
[WhiteClock "0:00:02"]
[BlackClock "0:00:00"]

1. e4 {[%clk 0:03:00]}  c5 {[%clk 0:02:56]} 2. Nf3 {[%clk 0:03:00]}  d6 {[%clk 0:02:57]} 3. Bb5+ {[%clk 0:03:01]}  Bd7 {[%clk 0:02:55]} 4. c4 {[%clk 0:03:00]}  g6 {[%clk 0:02:49]} 5. Bxd7+ {[%clk 0:02:58]}  Qxd7 {[%clk 0:02:47]} 6. d4 {[%clk 0:02:58]}  cxd4 {[%clk 0:02:48]} 7. Nxd4 {[%clk 0:02:59]}  Nc6 {[%clk 0:02:45]} 8. Nc3 {[%clk 0:02:59]}  Nf6 {[%clk 0:02:44]} 9. h3 {[%clk 0:02:53]}  Rc8 {[%clk 0:02:42]} 10. Be3 {[%clk 0:02:52]}  Bg7 {[%clk 0:02:40]} 11. b3 {[%clk 0:02:50]}  O-O {[%clk 0:02:36]} 12. O-O {[%clk 0:02:50]}  Rfd8 {[%clk 0:02:31]} 13. Qf3 {[%clk 0:02:49]}  a6 {[%clk 0:02:28]} 14. Rac1 {[%clk 0:02:48]}  Nxd4 {[%clk 0:02:26]} 15. Bxd4 {[%clk 0:02:48]}  b5 {[%clk 0:01:54]} 16. Bxf6 {[%clk 0:02:08]}  Bxf6 {[%clk 0:01:50]} 17. Nd5 {[%clk 0:02:09]}  Bd4 {[%clk 0:01:50]} 18. Qd3 {[%clk 0:01:57]}  Ba7 {[%clk 0:01:47]} 19. cxb5 {[%clk 0:01:54]}  axb5 {[%clk 0:01:46]} 20. Rfd1 {[%clk 0:01:41]}  Kg7 {[%clk 0:01:40]} 21. Nc3 {[%clk 0:01:29]}  Rc5 {[%clk 0:01:25]} 22. b4 {[%clk 0:01:28]}  Rc4 {[%clk 0:01:24]} 23. Nxb5 {[%clk 0:01:27]}  Rxc1 {[%clk 0:01:18]} 24. Rxc1 {[%clk 0:01:28]}  Bb6 {[%clk 0:01:18]} 25. a4 {[%clk 0:01:28]}  Rb8 {[%clk 0:01:16]} 26. Qd5 {[%clk 0:01:20]}  Rc8 {[%clk 0:01:12]} 27. Rc4 {[%clk 0:01:04]}  Rb8 {[%clk 0:00:58]} 28. Rc6 {[%clk 0:01:01]}  Bd8 {[%clk 0:00:52]} 29. a5 {[%clk 0:00:51]}  e6 {[%clk 0:00:46]} 30. Qxd6 {[%clk 0:00:49]}  Qxd6 {[%clk 0:00:22]} 31. Nxd6 {[%clk 0:00:50]}  Rxb4 {[%clk 0:00:18]} 32. a6 {[%clk 0:00:51]}  Bb6 {[%clk 0:00:11]} 33. g3 {[%clk 0:00:37]}  Rb2 {[%clk 0:00:08]} 34. Nc4 {[%clk 0:00:27]}  Bxf2+ {[%clk 0:00:08]} 35. Kg2 {[%clk 0:00:23]}  Ra2 {[%clk 0:00:09]} 36. Kf3 {[%clk 0:00:23]}  Bd4 {[%clk 0:00:08]} 37. e5 {[%clk 0:00:21]}  f5 {[%clk 0:00:05]} 38. exf6+ {[%clk 0:00:12]}  Kxf6 {[%clk 0:00:06]} 39. Ke4 {[%clk 0:00:12]}  Bf2 {[%clk 0:00:05]} 40. g4 {[%clk 0:00:11]}  g5 {[%clk 0:00:04]} 41. Nd6 {[%clk 0:00:10]}  Ra3 {[%clk 0:00:02]} 42. Nb5 {[%clk 0:00:10]}  Ra4+ {[%clk 0:00:02]} 43. Kf3 {[%clk 0:00:09]}  Bg1 {[%clk 0:00:03]} 44. Nc7 {[%clk 0:00:09]}  Ke7 {[%clk 0:00:03]} 45. Nb5 {[%clk 0:00:05]}  Kf6 {[%clk 0:00:02]} 46. Nc3 {[%clk 0:00:05]}  Ra3 {[%clk 0:00:02]} 47. Ke4 {[%clk 0:00:05]}  Bf2 {[%clk 0:00:02]} 48. Nd5+ {[%clk 0:00:05]}  Kf7 {[%clk 0:00:02]} 49. Nc7 {[%clk 0:00:05]}  Ke7 {[%clk 0:00:02]} 50. Nb5 {[%clk 0:00:02]}  Re3+ {[%clk 0:00:02]} 51. Kd4 {[%clk 0:00:02]}  Re1+ {[%clk 0:00:01]} 52. Kd3 {[%clk 0:00:02]}  Ra1 {[%clk 0:00:00]} 53. Rc7+ {[%clk 0:00:02]} 1-0

[Event "December 19 Early 2023"]
[Site "https://www.chess.com"]
[Date "2023.12.19"]
[Round "7"]
[White "Zhigalko, Sergei"]
[Black "Maksimovic, Bojan"]
[Result "0-1"]
[Board "14"]
[TimeControl "180+1"]
[WhiteFideId "13502956"]
[BlackFideId "14408120"]
[WhiteElo "2616"]
[BlackElo "2527"]
[WhiteTeam "BLR"]
[BlackTeam "BIH"]
[WhiteClock "0:00:00"]
[BlackClock "0:00:15"]

1. e4 {[%clk 0:03:00]}  a6 {[%clk 0:02:59]} 2. d4 {[%clk 0:03:00]}  e6 {[%clk 0:02:59]} 3. Nf3 {[%clk 0:03:00]}  d5 {[%clk 0:02:59]} 4. e5 {[%clk 0:03:00]}  c5 {[%clk 0:02:59]} 5. c3 {[%clk 0:03:00]}  Bd7 {[%clk 0:02:59]} 6. Bd3 {[%clk 0:02:54]}  cxd4 {[%clk 0:03:00]} 7. Nxd4 {[%clk 0:02:46]}  Nc6 {[%clk 0:02:56]} 8. Nf3 {[%clk 0:02:47]}  Qc7 {[%clk 0:02:53]} 9. Bf4 {[%clk 0:02:41]}  f6 {[%clk 0:02:45]} 10. Qe2 {[%clk 0:02:40]}  g5 {[%clk 0:02:42]} 11. Bg3 {[%clk 0:02:34]}  g4 {[%clk 0:02:42]} 12. exf6 {[%clk 0:02:28]}  Bd6 {[%clk 0:02:24]} 13. f7+ {[%clk 0:02:11]}  Kxf7 {[%clk 0:02:23]} 14. Ng5+ {[%clk 0:02:11]}  Ke7 {[%clk 0:02:23]} 15. Bh4 {[%clk 0:01:31]}  Ne5 {[%clk 0:01:11]} 16. Ne4+ {[%clk 0:00:22]}  Kf7 {[%clk 0:01:11]} 17. Nxd6+ {[%clk 0:00:18]}  Qxd6 {[%clk 0:01:12]} 18. O-O {[%clk 0:00:16]}  Nxd3 {[%clk 0:01:06]} 19. Qxd3 {[%clk 0:00:16]}  Bb5 {[%clk 0:01:06]} 20. Qd4 {[%clk 0:00:14]}  e5 {[%clk 0:01:07]} 21. Qxg4 {[%clk 0:00:14]}  Bxf1 {[%clk 0:01:06]} 22. Kxf1 {[%clk 0:00:15]}  Nf6 {[%clk 0:01:07]} 23. Qf5 {[%clk 0:00:10]}  Qe6 {[%clk 0:01:04]} 24. Qf3 {[%clk 0:00:10]}  Rhg8 {[%clk 0:00:44]} 25. Bxf6 {[%clk 0:00:07]}  Qxf6 {[%clk 0:00:40]} 26. Qxd5+ {[%clk 0:00:07]}  Kg7 {[%clk 0:00:41]} 27. Nd2 {[%clk 0:00:04]}  Kh8 {[%clk 0:00:31]} 28. Nf3 {[%clk 0:00:03]}  Rae8 {[%clk 0:00:32]} 29. Re1 {[%clk 0:00:03]}  Qf4 {[%clk 0:00:31]} 30. Nxe5 {[%clk 0:00:00]}  Qxh2 {[%clk 0:00:15]} 0-1

[Event "December 19 Early 2023"]
[Site "https://www.chess.com"]
[Date "2023.12.19"]
[Round "7"]
[White "Finek, Vaclav"]
[Black "Ter-Sahakyan, Samvel"]
[Result "1/2-1/2"]
[Board "15"]
[TimeControl "180+1"]
[WhiteFideId "23718293"]
[BlackFideId "13302531"]
[WhiteElo "2309"]
[BlackElo "2556"]
[WhiteTeam "CZE"]
[BlackTeam "ARM"]
[WhiteClock "0:00:13"]
[BlackClock "0:00:05"]

1. Nf3 {[%clk 0:02:58]}  d5 {[%clk 0:02:59]} 2. g3 {[%clk 0:02:58]}  g6 {[%clk 0:02:59]} 3. Bg2 {[%clk 0:02:59]}  Bg7 {[%clk 0:02:59]} 4. O-O {[%clk 0:03:00]}  e5 {[%clk 0:03:00]} 5. d3 {[%clk 0:03:00]}  Nc6 {[%clk 0:02:59]} 6. e4 {[%clk 0:03:00]}  dxe4 {[%clk 0:02:58]} 7. dxe4 {[%clk 0:03:00]}  Qxd1 {[%clk 0:02:58]} 8. Rxd1 {[%clk 0:03:01]}  Bg4 {[%clk 0:02:57]} 9. c3 {[%clk 0:03:00]}  Nf6 {[%clk 0:02:57]} 10. Re1 {[%clk 0:02:58]}  h6 {[%clk 0:02:47]} 11. Nbd2 {[%clk 0:02:54]}  Be6 {[%clk 0:02:45]} 12. Nb3 {[%clk 0:02:54]}  b6 {[%clk 0:02:42]} 13. h3 {[%clk 0:02:51]}  O-O {[%clk 0:02:37]} 14. Be3 {[%clk 0:02:34]}  a5 {[%clk 0:02:35]} 15. Nbd2 {[%clk 0:02:33]}  Rfd8 {[%clk 0:02:35]} 16. a4 {[%clk 0:02:33]}  Ne8 {[%clk 0:02:33]} 17. Bf1 {[%clk 0:02:32]}  Nd6 {[%clk 0:02:32]} 18. g4 {[%clk 0:02:32]}  Nb8 {[%clk 0:02:09]} 19. Be2 {[%clk 0:02:23]}  Nd7 {[%clk 0:02:09]} 20. Nh2 {[%clk 0:02:23]}  Kh7 {[%clk 0:02:06]} 21. Nhf1 {[%clk 0:02:21]}  Bf6 {[%clk 0:02:05]} 22. f3 {[%clk 0:02:05]}  Bh4 {[%clk 0:02:00]} 23. Red1 {[%clk 0:02:05]}  Nc5 {[%clk 0:01:50]} 24. Bxc5 {[%clk 0:02:04]}  bxc5 {[%clk 0:01:50]} 25. b3 {[%clk 0:01:56]}  Rab8 {[%clk 0:01:44]} 26. c4 {[%clk 0:01:50]}  Bg5 {[%clk 0:01:37]} 27. Kf2 {[%clk 0:01:48]}  Nc8 {[%clk 0:01:17]} 28. Ne3 {[%clk 0:01:42]}  Ne7 {[%clk 0:01:17]} 29. Nd5 {[%clk 0:01:39]}  Nc6 {[%clk 0:01:17]} 30. Nf1 {[%clk 0:01:25]}  Rb7 {[%clk 0:01:11]} 31. Rd3 {[%clk 0:01:21]}  Nd4 {[%clk 0:01:11]} 32. Bd1 {[%clk 0:01:20]}  c6 {[%clk 0:01:10]} 33. Nde3 {[%clk 0:01:18]}  Bc8 {[%clk 0:00:58]} 34. Ng2 {[%clk 0:01:13]}  Rbd7 {[%clk 0:00:56]} 35. h4 {[%clk 0:01:11]}  Be7 {[%clk 0:00:55]} 36. Ra2 {[%clk 0:01:07]}  Ne6 {[%clk 0:00:50]} 37. Rxd7 {[%clk 0:01:05]}  Rxd7 {[%clk 0:00:51]} 38. Rd2 {[%clk 0:01:04]}  Rd4 {[%clk 0:00:48]} 39. Ke3 {[%clk 0:00:56]}  Kg7 {[%clk 0:00:42]} 40. Be2 {[%clk 0:00:40]}  Bd6 {[%clk 0:00:36]} 41. Rd3 {[%clk 0:00:37]}  Rxd3+ {[%clk 0:00:30]} 42. Bxd3 {[%clk 0:00:35]}  Nf4 {[%clk 0:00:30]} 43. Nxf4 {[%clk 0:00:28]}  exf4+ {[%clk 0:00:31]} 44. Ke2 {[%clk 0:00:27]}  h5 {[%clk 0:00:25]} 45. g5 {[%clk 0:00:12]}  f6 {[%clk 0:00:25]} 46. gxf6+ {[%clk 0:00:12]}  Kxf6 {[%clk 0:00:26]} 47. Nd2 {[%clk 0:00:11]}  Ke5 {[%clk 0:00:24]} 48. Nb1 {[%clk 0:00:06]}  Be7 {[%clk 0:00:21]} 49. Na3 {[%clk 0:00:05]}  Bxh4 {[%clk 0:00:21]} 50. Nc2 {[%clk 0:00:06]}  Bf6 {[%clk 0:00:15]} 51. Ne1 {[%clk 0:00:04]}  g5 {[%clk 0:00:16]} 52. Kd2 {[%clk 0:00:03]}  g4 {[%clk 0:00:14]} 53. Ke2 {[%clk 0:00:04]}  Kd4 {[%clk 0:00:14]} 54. Kd2 {[%clk 0:00:03]}  Bh4 {[%clk 0:00:13]} 55. Ng2 {[%clk 0:00:01]}  Bf2 {[%clk 0:00:12]} 56. Be2 {[%clk 0:00:02]}  Be3+ {[%clk 0:00:10]} 57. Kc2 {[%clk 0:00:01]}  Be6 {[%clk 0:00:10]} 58. Nh4 {[%clk 0:00:01]}  g3 {[%clk 0:00:10]} 59. Ng2 {[%clk 0:00:01]}  Bh3 {[%clk 0:00:10]} 60. Bf1 {[%clk 0:00:01]}  Be6 {[%clk 0:00:09]} 61. Nh4 {[%clk 0:00:01]}  Ke5 {[%clk 0:00:09]} 62. Ng2 {[%clk 0:00:02]}  Kf6 {[%clk 0:00:09]} 63. Kd3 {[%clk 0:00:02]}  Bc1 {[%clk 0:00:07]} 64. Nh4 {[%clk 0:00:02]}  Kg5 {[%clk 0:00:07]} 65. Nf5 {[%clk 0:00:03]}  h4 {[%clk 0:00:07]} 66. Bh3 {[%clk 0:00:03]}  Bf7 {[%clk 0:00:06]} 67. Bg2 {[%clk 0:00:03]}  Bh5 {[%clk 0:00:07]} 68. Ke2 {[%clk 0:00:03]}  Bb2 {[%clk 0:00:06]} 69. Bh3 {[%clk 0:00:04]}  Be5 {[%clk 0:00:07]} 70. Bg2 {[%clk 0:00:04]}  Bg6 {[%clk 0:00:07]} 71. Bh3 {[%clk 0:00:04]}  Bh7 {[%clk 0:00:08]} 72. Bg2 {[%clk 0:00:05]}  Kf6 {[%clk 0:00:08]} 73. Bh3 {[%clk 0:00:05]}  Bc3 {[%clk 0:00:08]} 74. Kd3 {[%clk 0:00:05]}  Be5 {[%clk 0:00:05]} 75. Bg2 {[%clk 0:00:05]}  Kg5 {[%clk 0:00:06]} 76. Bh3 {[%clk 0:00:06]}  Bg8 {[%clk 0:00:06]} 77. Bg2 {[%clk 0:00:06]}  Be6 {[%clk 0:00:07]} 78. Bh3 {[%clk 0:00:06]}  Bf6 {[%clk 0:00:07]} 79. Bg2 {[%clk 0:00:07]}  Kg6 {[%clk 0:00:07]} 80. Bh3 {[%clk 0:00:07]}  Kf7 {[%clk 0:00:06]} 81. Nd6+ {[%clk 0:00:06]}  Ke7 {[%clk 0:00:07]} 82. Nf5+ {[%clk 0:00:07]}  Kd7 {[%clk 0:00:07]} 83. Bg2 {[%clk 0:00:07]}  Bg5 {[%clk 0:00:04]} 84. Bh3 {[%clk 0:00:07]}  Kc8 {[%clk 0:00:04]} 85. Nd6+ {[%clk 0:00:07]}  Kd7 {[%clk 0:00:05]} 86. Nf5 {[%clk 0:00:07]}  Bxf5 {[%clk 0:00:04]} 87. exf5 {[%clk 0:00:07]}  Kd6 {[%clk 0:00:04]} 88. Ke4 {[%clk 0:00:07]}  Ke7 {[%clk 0:00:03]} 89. Bg2 {[%clk 0:00:08]}  Kf6 {[%clk 0:00:03]} 90. Bh3 {[%clk 0:00:09]}  Bh6 {[%clk 0:00:04]} 91. Bg2 {[%clk 0:00:09]}  Bg5 {[%clk 0:00:04]} 92. Bh3 {[%clk 0:00:09]}  Bh6 {[%clk 0:00:04]} 93. Bg2 {[%clk 0:00:10]}  Kg5 {[%clk 0:00:04]} 94. Bh3 {[%clk 0:00:10]}  Bg7 {[%clk 0:00:05]} 95. Bg2 {[%clk 0:00:11]}  Bd4 {[%clk 0:00:05]} 96. Bh3 {[%clk 0:00:11]}  Bf6 {[%clk 0:00:05]} 97. Bg2 {[%clk 0:00:11]}  Bd4 {[%clk 0:00:04]} 98. Bh3 {[%clk 0:00:12]}  Bf6 {[%clk 0:00:05]} 99. Bg2 {[%clk 0:00:13]}  Bd4 {[%clk 0:00:05]} 1/2-1/2